bitfinex/quotes_ETHUSD_20250626
["timestamp","ask_amount","ask_price","bid_price","bid_amount"]
[1750943519758,0.97993148,2435.5,2435.2,0.2193265]
[1750943519933,0.97993148,2435.4,2435.2,0.2193265]
[1750943520140,0.97993148,2435.6,2435.2,0.2193265]
[1750943520320,0.97993148,2435.5,2435.2,0.2193265]
[1750943520522,0.97993148,2435.6,2435.2,0.2193265]
[1750943520821,2.15386463,2435.5,2435.2,0.2193265]
[1750943521123,0.8154,2435.3,2435.2,0.2193265]
[1750943523025,0.55,2435.4,2435.2,0.2193265]
[1750943523026,0.97869785,2435.4,2435.2,0.2193265]
[1750943523236,1.78929785,2436.0,2435.5,0.8319]
[1750943523571,3.46969928,2436.5,2435.2,0.2193265]
[1750943523572,0.97869785,2435.9,2435.2,14.32572692]
[1750943523726,0.97869785,2435.8,2435.7,0.8319]
[1750943523923,0.97869785,2435.8,2435.7,4.93749592]
[1750943524161,0.97869785,2436.4,2436.0,4.10506907]
[1750943524457,0.97869785,2436.3,2435.7,0.8319]
[1750943524661,0.97869785,2436.2,2435.7,4.93740463]
[1750943524829,0.97869785,2436.1,2435.7,4.93740463]
[1750943525029,0.2048,2435.9,2435.7,0.8319]
[1750943526160,0.97869785,2436.0,2435.3,0.8244]
[1750943526360,0.2048,2435.5,2435.3,0.8244]
[1750943529365,6.825,2435.7,2435.3,0.794]
[1750943530064,0.2048,2435.3,2435.2,0.2193265]
[1750943536639,0.9979,2435.3,2435.2,0.2193265]
[1750943536984,1.77859,2435.3,2435.2,0.2193265]
[1750943539388,0.9979,2435.3,2435.2,0.2193265]
[1750943540291,1.5479,2435.3,2435.2,0.2193265]
[1750943540499,11.5479,2435.3,2435.2,0.2193265]
[1750943541985,20.1409,2435.3,2435.2,0.2193265]
[1750943542373,24.23967027,2435.3,2435.2,0.2193265]
[1750943542575,27.0742559,2435.3,2435.2,0.2193265]
[1750943543070,23.94396859,2435.3,2435.2,0.2193265]
[1750943543261,23.95396859,2435.3,2435.2,0.2193265]
[1750943544176,22.97798563,2435.3,2435.2,0.2193265]
[1750943545564,27.0842559,2435.3,2435.2,0.2193265]
[1750943545759,28.05975057,2435.3,2435.2,0.2193265]
[1750943546196,23.9534803,2435.3,2435.2,0.2193265]
[1750943546799,28.05975057,2435.3,2435.2,0.2193265]
[1750943546978,19.45675057,2435.3,2435.2,0.2193265]
[1750943547179,28.05675057,2435.3,2435.2,0.2193265]
[1750943547695,28.05675057,2435.3,2435.2,0.00132869]
[1750943549997,0.8051,2434.5,2433.9,0.7575]
[1750943550199,6.801,2434.4,2433.9,0.7575]
[1750943551808,6.801,2434.4,2433.9,4.8660211]
[1750943552576,6.801,2434.4,2434.0,4.10845412]
[1750943552772,6.799,2434.3,2434.1,0.79]
[1750943552971,6.799,2434.3,2434.1,4.89823148]
[1750943553184,6.799,2434.3,2434.1,5.79890729]
[1750943553798,6.799,2434.3,2434.2,4.10812587]
[1750943554007,2.5517,2435.6,2434.4,0.7709]
[1750943554206,6.808,2435.5,2434.8,0.7709]
[1750943555289,6.808,2435.4,2434.8,0.7709]
[1750943555505,2.349,2435.5,2434.8,0.7709]
[1750943555506,0.55,2435.5,2434.8,4.87792717]
[1750943555722,6.806,2435.4,2434.8,4.87792717]
[1750943556322,6.806,2435.4,2434.8,0.7709]
[1750943558925,0.77752546,2435.5,2434.8,0.7709]
[1750943559122,2.77220166,2435.7,2435.1,0.8134]
[1750943559418,6.803,2435.6,2435.1,0.8134]
[1750943559591,6.803,2435.6,2435.1,4.91998616]
[1750943560014,0.2048,2435.2,2435.1,0.8134]
[1750943560191,0.2048,2435.2,2435.1,1.71609873]
[1750943560391,0.2048,2435.2,2435.1,5.82270626]
[1750943560812,0.2048,2435.2,2435.1,0.8134]
[1750943561199,0.2048,2435.2,2434.7,14.10718209]
[1750943561400,0.55,2435.5,2434.8,4.91959616]
[1750943562800,0.55,2435.5,2434.9,4.10693069]
[1750943563002,6.801,2435.4,2435.0,4.10666139]
[1750943563203,6.798,2435.4,2435.0,4.10666139]
[1750943563515,6.798,2435.4,2435.1,0.7814]
[1750943564429,0.55,2435.7,2435.1,0.7814]
[1750943564731,6.798,2435.5,2435.1,0.7814]
[1750943566098,0.2048,2435.1,2434.8,0.785]
[1750943566294,0.55,2435.4,2434.8,4.89202814]
[1750943566526,0.2048,2434.9,2434.8,4.89202814]
[1750943566731,0.2048,2434.9,2434.8,0.785]
[1750943567830,0.2048,2434.9,2434.5,4.10757401]
[1750943568013,0.2048,2434.7,2434.6,4.89751425]
[1750943568216,0.2048,2434.7,2434.6,6.79803506]
[1750943568814,0.2048,2434.7,2434.6,4.89751425]
[1750943569314,0.2048,2434.7,2434.6,0.7901]
[1750943569514,0.2048,2434.7,2434.6,4.89755091]
[1750943570614,0.2048,2434.7,2434.6,0.7901]
[1750943571544,0.2048,2434.7,2434.2,0.8155]
[1750943571745,0.7791,2434.9,2434.3,10.0]
[1750943572448,0.2048,2434.3,2434.2,0.8155]
[1750943572649,0.2048,2434.3,2434.2,10.8155]
[1750943573350,0.2048,2434.3,2434.2,16.82685]
[1750943575444,0.2048,2434.3,2434.2,16.83165]
[1750943575750,1.795,2435.1,2434.6,4.92774976]
[1750943576438,3.1535,2435.3,2434.6,0.8203]
[1750943576749,3.1535,2435.3,2434.6,4.9277164]
[1750943576938,0.99475,2435.2,2434.6,0.8203]
[1750943577838,0.55,2434.9,2434.2,0.8203]
[1750943578744,0.8085,2434.8,2434.1,0.8203]
[1750943579330,2.6035,2434.8,2434.1,0.8203]
[1750943580467,0.55,2434.7,2434.1,0.8203]
[1750943580648,0.7642,2434.5,2433.6,14.89794097]
[1750943580824,0.7642,2434.5,2433.6,10.7889]
[1750943581317,4.65779476,2434.4,2433.6,0.7889]
[1750943581554,0.55,2434.4,2433.6,0.7889]
[1750943582322,4.65781692,2434.4,2433.6,0.7889]
[1750943582543,0.9529721,2434.3,2433.6,0.7889]
[1750943582852,0.7563,2433.9,2433.4,0.7923]
[1750943583237,1.795,2434.1,2433.4,0.7923]
[1750943583555,2.82462721,2434.1,2433.4,0.7923]
[1750943584268,0.7529,2433.7,2433.1,0.7766]
[1750943586158,0.7529,2433.7,2432.8,0.2193265]
[1750943586350,13.07885499,2434.1,2433.4,0.787]
[1750943586351,1.80742721,2434.1,2433.4,0.787]
[1750943586544,1.795,2433.9,2433.4,0.787]
[1750943587159,1.04004272,2433.9,2433.4,0.787]
[1750943587737,1.795,2434.0,2433.4,0.787]
[1750943588853,0.2048,2433.5,2433.4,0.787]
[1750943590962,0.2048,2433.5,2433.4,4.89647645]
[1750943591187,0.2048,2433.7,2433.6,4.10899054]
[1750943592737,0.2048,2433.7,2433.6,4.89449054]
[1750943593053,0.2048,2433.9,2433.7,4.10888085]
[1750943593450,0.2048,2433.9,2433.6,1.68587903]
[1750943593451,0.2048,2433.9,2433.6,5.79492168]
[1750943594457,0.55,2434.2,2433.4,0.7855]
[1750943594659,0.2048,2433.5,2433.4,0.7855]
[1750943595068,0.2048,2433.5,2433.4,4.89497645]
[1750943595543,0.2048,2433.5,2433.4,0.7855]
[1750943596261,0.2048,2433.5,2433.2,4.10973127]
[1750943596478,0.7501,2433.9,2433.2,0.7855]
[1750943596774,0.2048,2433.3,2433.1,4.10993278]
[1750943597534,0.2048,2433.3,2433.0,16.69057379]
[1750943597736,0.2048,2433.3,2433.2,4.10981423]
[1750943598037,0.2048,2433.3,2433.1,4.10990706]
[1750943598238,0.2048,2433.3,2433.0,5.29197003]
[1750943598437,0.2048,2433.3,2433.1,4.10995499]
[1750943598633,0.2048,2433.3,2433.0,6.69060436]
[1750943599234,0.2048,2433.3,2433.0,6.69054185]
[1750943599680,0.2048,2433.3,2433.1,4.1099746]
[1750943599835,0.2048,2433.3,2433.0,2.5805]
[1750943599836,0.2048,2433.3,2433.2,4.10981423]
[1750943600335,0.2048,2433.3,2433.1,4.10990001]
[1750943600531,0.2048,2433.3,2433.2,4.10981423]
[1750943601337,0.2048,2433.3,2433.0,0.7855]
[1750943601537,0.2048,2433.3,2433.1,4.10985147]
[1750943601964,1.796,2433.9,2432.8,1.0211265]
[1750943601965,0.778,2433.6,2432.8,1.0211265]
[1750943602268,0.778,2433.6,2432.9,10.0]
[1750943602269,0.2048,2433.0,2432.9,10.0]
[1750943602476,0.2048,2433.0,2432.8,11.0211265]
[1750943602676,0.2048,2433.0,2432.8,15.1315946]
[1750943602866,0.778,2433.6,2432.8,5.13160349]
[1750943602867,0.2048,2432.9,2432.8,5.13160349]
[1750943603179,30.0,2432.8,2430.7,5.30216572]
[1750943603341,4.11272146,2431.5,2430.3,4.53497376]
[1750943603542,0.55,2432.0,2430.9,5.1307]
[1750943603854,0.55,2431.8,2431.2,10.0]
[1750943604044,0.55,2431.8,2431.5,4.11262773]
[1750943604240,14.9398,2432.7,2431.6,1.862]
[1750943604241,3.0778,2432.7,2431.6,1.862]
[1750943604471,0.55,2432.5,2431.6,1.862]
[1750943604666,1.79589026,2432.4,2431.6,1.862]
[1750943604853,0.97129026,2432.3,2431.6,1.862]
[1750943605042,0.97129026,2432.2,2431.7,0.8111]
[1750943605243,0.7615,2432.6,2431.8,1.941]
[1750943605470,1.73279026,2432.6,2431.7,0.8111]
[1750943605675,1.73279026,2432.6,2430.8,12.3746872]
[1750943605676,0.7517,2432.4,2430.9,4.93249606]
[1750943605880,10.55,2432.3,2430.9,0.8188]
[1750943606189,6.60243772,2432.3,2431.1,4.11325441]
[1750943606375,0.9,2432.2,2430.9,0.8188]
[1750943606675,0.55,2431.9,2430.8,0.32545942]
[1750943606873,11.3032,2431.7,2430.8,0.32545942]
[1750943607189,0.7532,2431.7,2430.8,0.32545942]
[1750943607558,0.7532,2431.7,2431.1,4.11321281]
[1750943607753,0.7532,2431.7,2431.1,4.11322202]
[1750943607981,0.7532,2431.7,2431.0,4.11341905]
[1750943608284,0.55,2431.6,2430.9,0.7756]
[1750943608460,0.55,2431.6,2430.8,10.32545942]
[1750943609070,0.7532,2431.7,2430.8,11.52110586]
[1750943609375,0.96755559,2431.9,2431.4,4.11273975]
[1750943609547,0.96755559,2431.9,2430.8,11.52110586]
[1750943609548,0.96755559,2432.0,2430.9,10.0]
[1750943609748,0.96755559,2432.0,2431.5,4.11262172]
[1750943609957,0.96755559,2431.9,2431.7,4.11234285]
[1750943610156,0.96755559,2432.0,2430.8,1.52110586]
[1750943610361,0.96755559,2431.9,2431.4,4.11283019]
[1750943610656,0.96755559,2431.8,2431.5,4.11258874]
[1750943610881,0.96755559,2431.7,2431.5,4.11258874]
[1750943611187,0.96602507,2431.6,2431.5,4.11258874]
[1750943611388,0.96620344,2432.0,2431.7,4.11223268]
[1750943611693,0.96620344,2431.9,2431.7,4.11227998]
[1750943611861,0.96620344,2431.8,2431.7,4.11234938]
[1750943612692,0.8245,2432.4,2431.6,4.11238988]
[1750943612693,0.55,2432.3,2431.6,4.11238988]
[1750943612894,0.55,2432.3,2431.5,4.11257235]
[1750943613066,0.96599119,2432.2,2431.4,16.05478308]
[1750943613271,1.3745,2432.0,2431.0,4.87719767]
[1750943613480,0.55,2431.8,2431.0,10.0]
[1750943613681,0.55,2431.6,2430.8,4.43928127]
[1750943614062,0.55,2431.6,2430.9,10.0]
[1750943614496,0.7799,2431.5,2430.9,10.0]
[1750943614864,0.7799,2431.5,2430.9,14.11368436]
[1750943615069,0.7799,2431.5,2430.9,16.13204406]
[1750943615286,0.7799,2431.5,2431.0,10.0]
[1750943615565,0.7799,2431.5,2430.9,6.13211994]
[1750943615798,0.7799,2431.5,2431.0,4.11338141]
[1750943616102,7.34604912,2431.9,2430.9,6.13211994]
[1750943616103,0.99324912,2431.9,2430.9,12.01841833]
[1750943616264,0.99324912,2431.9,2431.2,4.11305189]
[1750943616265,0.96536794,2431.8,2431.2,4.11305189]
[1750943616459,0.7592,2431.9,2431.3,4.11290986]
[1750943616460,0.96536794,2431.7,2431.3,4.11290986]
[1750943616666,0.7592,2431.9,2431.3,4.11290986]
[1750943616980,0.96517627,2431.8,2431.0,1.23438777]
[1750943617159,0.96517627,2431.7,2431.2,4.11306846]
[1750943617362,0.96517627,2431.6,2431.3,4.11301978]
[1750943617596,0.7592,2431.9,2431.3,4.11301978]
[1750943617766,0.96518795,2431.8,2431.3,4.11301978]
[1750943617977,0.7592,2431.9,2431.3,4.11301978]
[1750943617978,0.96518795,2431.7,2431.3,4.11301978]
[1750943618171,0.7592,2431.9,2431.4,4.11283273]
[1750943618172,0.96518795,2431.6,2431.4,4.11283273]
[1750943618384,0.7592,2431.9,2431.5,4.1126503]
[1750943618700,0.96517115,2431.8,2430.8,4.43920029]
[1750943618897,0.96517115,2431.7,2431.3,4.11302424]
[1750943619061,0.96517115,2431.6,2430.9,0.80122053]
[1750943619266,0.7592,2431.9,2431.2,4.11319512]
[1750943619507,0.96531412,2431.8,2431.2,4.1131231]
[1750943619709,0.96531412,2431.7,2430.9,14.91488414]
[1750943619923,1.51531412,2431.6,2430.8,0.32545942]
[1750943620197,0.55,2431.4,2430.8,10.32545942]
[1750943620400,0.96531412,2431.3,2430.8,0.32545942]
[1750943620590,0.55,2431.1,2430.8,0.32545942]
[1750943620784,0.96531412,2431.0,2430.8,0.32545942]
[1750943620975,4.11370274,2430.9,2430.8,0.32545942]
[1750943621180,1.86633347,2430.9,2430.8,0.32545942]
[1750943621496,0.7838,2431.0,2430.8,0.32545942]
[1750943622412,0.96541385,2430.9,2430.8,0.32545942]
[1750943623078,0.7749,2431.4,2430.8,0.32545942]
[1750943623270,30.0,2430.3,2426.6,0.7856]
[1750943623464,20.48358957,2429.4,2427.6,4.11914808]
[1750943623797,9.865,2430.2,2428.4,4.11793499]
[1750943623983,0.2056,2428.5,2428.4,7.54568373]
[1750943624319,0.2056,2428.8,2428.4,3.29237894]
[1750943624472,0.96460486,2429.4,2428.4,2.3316]
[1750943624812,0.7666,2429.5,2428.6,4.11749305]
[1750943624813,0.96460486,2429.3,2428.6,4.11749305]
[1750943625016,0.96460486,2429.2,2428.8,4.11716416]
[1750943625197,10.0,2429.9,2428.5,1.10545815]
[1750943625198,0.8279,2429.9,2428.5,1.10545815]
[1750943625382,5.07978502,2429.8,2428.5,4.11765513]
[1750943625587,4.11642038,2429.3,2428.1,0.7607]
[1750943625897,0.96418736,2429.2,2428.2,2.127]
[1750943626098,0.96418736,2429.1,2428.1,0.7607]
[1750943626289,0.96418736,2429.0,2428.1,4.11844652]
[1750943626490,0.8167,2429.4,2428.0,2.127]
[1750943626685,2.45581036,2429.3,2428.1,0.26901556]
[1750943626894,0.8167,2429.4,2428.6,4.11747582]
[1750943626895,0.96253125,2429.2,2428.6,4.11747582]
[1750943627089,0.96253125,2429.1,2428.7,4.11738411]
[1750943627281,0.96253125,2429.0,2428.7,4.11742907]
[1750943627498,0.96253125,2428.9,2428.8,4.11725955]
[1750943627675,0.96253125,2428.9,2428.8,14.11725955]
[1750943628006,0.96253125,2428.9,2428.8,16.23057841]
[1750943628317,0.96253125,2428.9,2428.8,10.0]
[1750943628523,0.96253125,2428.9,2428.8,14.11725955]
[1750943628730,0.8247,2429.8,2428.9,10.0]
[1750943628876,0.96097732,2429.7,2429.2,10.0]
[1750943629082,0.96097732,2429.6,2429.2,12.127]
[1750943629278,0.7871,2430.1,2429.2,2.127]
[1750943629601,4.70704914,2430.0,2429.1,2.127]
[1750943629804,0.961409,2429.9,2429.1,6.24365379]
[1750943630003,0.961409,2429.8,2429.2,4.11655673]
[1750943630198,3.25544039,2429.6,2429.3,4.11624872]
[1750943630394,0.961409,2429.5,2429.4,4.11624269]
[1750943630594,0.961409,2429.5,2429.4,4.93950712]
[1750943631615,0.961409,2429.5,2429.4,7.06650712]
[1750943632917,0.961409,2429.5,2429.4,7.83030712]
[1750943633412,0.961409,2429.5,2429.4,17.83030712]
[1750943634913,0.961409,2429.5,2429.4,18.03590712]
[1750943635114,3.25544039,2430.4,2430.0,4.11522633]
[1750943635315,0.2056,2430.3,2430.1,2.127]
[1750943635497,3.25544039,2430.4,2430.3,4.11471834]
[1750943635820,0.2056,2430.4,2430.3,4.88011834]
[1750943636916,0.2056,2430.4,2430.2,6.24177635]
[1750943637090,0.2056,2430.4,2430.3,4.11471834]
[1750943637284,0.2056,2430.4,2430.3,2.127]
[1750943639916,0.2056,2430.4,2430.3,9.539]
[1750943640100,0.2056,2430.4,2430.2,9.539]
[1750943640413,0.55,2430.9,2430.2,9.539]
[1750943640610,0.2056,2430.2,2430.1,7.408]
[1750943640921,0.2056,2430.1,2430.0,2.127]
[1750943641682,0.2056,2430.1,2429.9,4.11528331]
[1750943641937,4.66428792,2430.6,2429.9,9.529]
[1750943642293,0.55,2430.6,2429.9,9.529]
[1750943642487,0.55,2430.6,2429.7,10.0]
[1750943642488,4.66465535,2430.4,2429.4,1.02886443]
[1750943642687,0.2056,2429.7,2429.5,9.528]
[1750943642916,4.66478482,2430.3,2429.5,9.528]
[1750943643132,0.8012,2430.2,2429.2,0.9712]
[1750943643298,0.2056,2429.4,2429.2,6.24356925]
[1750943643500,0.8012,2430.2,2429.4,4.11613731]
[1750943643729,0.2056,2429.6,2429.3,4.11632685]
[1750943644099,0.2056,2429.6,2429.2,2.127]
[1750943644438,0.2056,2429.7,2429.4,4.11615482]
[1750943644617,0.2056,2429.7,2429.5,4.11606114]
[1750943645131,0.2056,2429.7,2429.5,4.11607326]
[1750943645313,0.8012,2430.2,2429.7,4.115716]
[1750943645616,0.8012,2430.2,2429.7,4.11570883]
[1750943645617,0.2056,2429.9,2429.7,4.11570883]
[1750943646187,0.2056,2429.9,2429.8,4.11556506]
[1750943646489,0.2056,2429.9,2429.8,5.01820403]
[1750943646690,3.25544039,2430.7,2430.3,4.11467919]
[1750943646889,0.2056,2430.6,2430.2,4.11478717]
[1750943647118,0.96644368,2430.5,2430.4,4.11453218]
[1750943647626,0.96644368,2430.5,2430.3,5.08720263]
[1750943647798,0.7546,2431.2,2430.4,7.4887437]
[1750943647998,0.96703954,2431.1,2431.0,4.11340796]
[1750943648224,0.96703954,2431.1,2431.0,6.24040796]
[1750943648420,0.96703954,2431.1,2431.0,16.99760796]
[1750943648595,0.96703954,2431.1,2431.0,19.84663662]
[1750943650916,0.7924,2431.9,2431.0,5.73322866]
[1750943651103,0.96849783,2431.8,2431.3,4.11291123]
[1750943651298,0.96849783,2431.7,2431.3,4.11291123]
[1750943651503,0.96849783,2431.6,2431.3,4.11291123]
[1750943651737,0.96849783,2431.5,2431.3,4.11291123]
[1750943651932,0.96849783,2431.4,2431.3,4.11291123]
[1750943652233,0.7924,2431.9,2430.9,10.0]
[1750943652408,0.96730929,2431.8,2431.2,4.11310435]
[1750943652608,0.96730929,2431.7,2431.3,4.11300533]
[1750943652811,0.96730929,2431.6,2431.1,4.11329744]
[1750943653019,0.96730929,2431.5,2431.1,5.26262718]
[1750943653319,0.7924,2431.9,2431.3,4.11302595]
[1750943653535,0.96695812,2431.8,2431.2,2.138]
[1750943653718,0.96695812,2431.7,2431.2,2.138]
[1750943653928,0.96695812,2431.6,2431.2,2.138]
[1750943654122,0.96695812,2431.5,2431.2,6.25117688]
[1750943654426,0.7924,2431.9,2431.2,6.25112649]
[1750943654630,0.7924,2431.9,2430.7,10.31177031]
[1750943654631,0.96620736,2431.8,2430.9,9.506]
[1750943654813,0.96620736,2431.7,2431.0,4.11353352]
[1750943655014,0.96620736,2431.6,2431.0,4.11352696]
[1750943655218,0.96610913,2431.5,2430.9,2.138]
[1750943655412,0.7924,2431.9,2431.0,4.11353352]
[1750943655737,1.25879664,2431.8,2430.9,2.138]
[1750943655932,0.96575664,2431.7,2430.9,2.138]
[1750943656135,0.96575664,2431.6,2431.0,4.11345318]
[1750943656305,0.84304,2431.8,2430.9,6.25163215]
[1750943656505,0.96593232,2431.7,2431.0,4.1135094]
[1750943656703,0.96593232,2431.6,2431.0,4.1135094]
[1750943656907,0.96593232,2431.5,2430.9,2.138]
[1750943657128,0.29304,2431.8,2430.9,6.25165172]
[1750943657346,0.96656498,2431.7,2431.0,4.11351027]
[1750943657639,0.96656498,2431.6,2430.9,6.25164074]
[1750943657823,0.2056,2431.1,2430.9,6.25164074]
[1750943658341,0.2056,2431.1,2430.9,6.25161383]
[1750943658546,0.2056,2431.1,2430.9,6.25169024]
[1750943658708,0.2056,2431.1,2431.0,4.11353352]
[1750943658913,0.29304,2431.8,2431.2,4.11317989]
[1750943659115,0.2056,2431.3,2431.2,4.11317989]
[1750943659722,0.7924,2431.9,2431.5,4.11265981]
[1750943659916,0.96788925,2431.8,2431.5,4.11265981]
[1750943660116,0.2056,2431.5,2431.3,4.11293682]
[1750943660545,0.2056,2431.5,2431.4,4.11285679]
[1750943660715,0.2056,2431.5,2431.0,7.5546]
[1750943660915,0.2056,2431.6,2431.4,4.11273448]
[1750943661254,0.2056,2431.6,2431.2,4.31868941]
[1750943661445,0.2056,2431.6,2431.2,0.2056]
[1750943661648,0.2056,2431.3,2431.1,16.25127231]
[1750943662016,0.2056,2431.3,2431.1,10.0]
[1750943662211,0.2056,2431.3,2431.1,14.11335574]
[1750943662416,0.2056,2431.3,2431.0,6.25148384]
[1750943662914,0.2056,2431.3,2431.0,16.25152206]
[1750943663232,0.2056,2431.6,2431.4,4.11272828]
[1750943663433,0.2056,2431.6,2431.5,4.11268764]
[1750943663936,0.97009394,2431.8,2431.4,4.11277748]
[1750943664253,0.97089035,2431.7,2431.4,4.11282394]
[1750943664448,0.7924,2431.9,2431.4,4.11282394]
[1750943664645,0.97091351,2431.8,2431.5,4.11266916]
[1750943664946,0.761,2432.3,2431.5,4.11266916]
[1750943665249,12.10201518,2432.2,2431.4,4.11278102]
[1750943665418,0.97091518,2432.1,2431.4,4.11278102]
[1750943665614,0.97091518,2432.0,2431.3,4.90800758]
[1750943665818,0.97091518,2431.9,2431.4,4.11278182]
[1750943666148,0.97091518,2431.8,2431.4,4.11278182]
[1750943666347,0.97091518,2431.7,2431.1,4.11331751]
[1750943666516,1.18921,2432.1,2431.2,4.11310633]
[1750943666714,0.9722767,2432.0,2431.3,4.11298741]
[1750943666929,0.9722767,2431.9,2431.4,4.11278363]
[1750943667131,0.9722767,2431.8,2431.3,4.11294769]
[1750943667351,0.9722767,2431.7,2431.3,4.11294769]
[1750943667549,0.9722767,2431.6,2431.3,4.11294769]
[1750943667752,1.18921,2432.1,2431.4,4.11284255]
[1750943667949,2.20514264,2432.0,2431.5,4.11265292]
[1750943668156,0.97311164,2431.9,2431.3,4.11297035]
[1750943668322,0.97311164,2431.8,2431.4,4.11274033]
[1750943668521,0.97311164,2431.7,2431.5,4.11268084]
[1750943668776,0.97311164,2431.6,2431.5,4.11268084]
[1750943670559,0.97311164,2431.6,2431.4,4.11278826]
[1750943670760,0.761,2432.3,2431.5,0.41127883]
[1750943670934,0.97582076,2432.2,2431.7,4.11219091]
[1750943671255,0.97582076,2432.1,2431.6,4.11237959]
[1750943671455,0.97582076,2432.0,2431.3,10.0]
[1750943671661,0.97582076,2431.9,2431.7,4.11234918]
[1750943671869,0.97582076,2431.8,2431.7,4.11234918]
[1750943672042,0.97582076,2431.8,2431.7,4.93483281]
[1750943672243,0.761,2432.3,2431.8,4.11205319]
[1750943672445,0.97540438,2432.2,2431.8,4.11205319]
[1750943672658,0.97540438,2432.1,2431.8,4.11205319]
[1750943672964,0.97540438,2432.0,2431.8,4.11205319]
[1750943673125,0.97540438,2431.9,2431.7,4.11229218]
[1750943673321,0.761,2432.3,2431.8,4.11216587]
[1750943673559,0.97510567,2432.2,2431.8,4.11216587]
[1750943673776,0.97510567,2432.1,2431.8,4.11216587]
[1750943673931,0.2056,2431.9,2431.8,4.11216587]
[1750943674130,1.18070567,2431.9,2431.8,4.11216587]
[1750943674530,3.25544039,2433.0,2432.0,4.11179339]
[1750943674727,8.13324088,2433.3,2432.1,11.23260836]
[1750943674950,0.8085,2433.3,2432.4,4.11106783]
[1750943675168,10.8085,2433.3,2432.5,4.11093453]
[1750943675465,0.8085,2433.3,2432.5,4.11093453]
[1750943675669,0.55,2433.1,2432.1,1.23260836]
[1750943675965,0.793,2433.0,2432.2,4.11140002]
[1750943676344,0.55,2432.9,2432.1,4.11158869]
[1750943676543,0.55,2432.9,2432.2,4.11146573]
[1750943676869,0.55,2432.9,2432.1,4.11154256]
[1750943677030,0.55,2432.9,2432.0,4.11177766]
[1750943677356,0.55,2432.7,2431.8,4.11206955]
[1750943677527,2.137,2432.6,2431.8,4.11206955]
[1750943677863,0.2687,2432.5,2431.8,4.11206955]
[1750943678260,0.8093,2432.4,2431.5,8.1088]
[1750943678448,0.8093,2432.4,2431.7,4.11226271]
[1750943678779,0.8093,2432.4,2431.6,4.11250223]
[1750943678969,0.8093,2432.4,2431.6,4.11239292]
[1750943679257,1.1078,2432.3,2431.6,4.11239292]
[1750943679459,3.2448,2432.3,2431.8,4.11207083]
[1750943679665,3.2448,2432.3,2431.4,6.24972056]
[1750943679666,0.8093,2432.4,2431.9,4.11199454]
[1750943680660,0.8093,2432.4,2432.0,4.11173111]
[1750943680862,0.8093,2432.4,2431.9,4.11193882]
[1750943681063,0.772,2432.7,2432.0,4.11180241]
[1750943681369,2.909,2432.7,2431.9,4.11192668]
[1750943681565,0.3459,2432.6,2431.8,4.92381764]
[1750943681736,0.3459,2432.6,2432.0,4.1118314]
[1750943682257,0.3459,2432.6,2431.9,4.11184792]
[1750943682451,0.3459,2432.6,2432.0,4.11180003]
[1750943682765,2.909,2432.7,2432.0,4.11180003]
[1750943682966,0.772,2432.7,2432.0,4.11180003]
[1750943683268,2.909,2432.7,2432.1,4.11150478]
[1750943683563,2.909,2432.7,2432.0,4.1117516]
[1750943683869,3.9263,2432.7,2432.1,4.11163763]
[1750943684242,1.7893,2432.7,2432.0,4.11172345]
[1750943684564,0.2048,2432.2,2432.1,4.11165819]
[1750943684767,0.2048,2432.2,2432.0,4.11176235]
[1750943685070,0.2048,2432.2,2432.0,4.1118346]
[1750943685576,0.2048,2432.2,2431.9,4.11200491]
[1750943686363,2.842,2432.7,2431.7,4.1122595]
[1750943686674,0.2048,2432.0,2431.6,4.11244248]
[1750943687264,0.2048,2432.0,2431.6,4.11244125]
[1750943687450,0.2048,2432.0,2431.6,4.11243999]
[1750943687653,0.8288,2432.0,2431.4,4.11276285]
[1750943687984,7.01427507,2432.6,2431.6,0.8154]
[1750943687985,2.90344685,2432.6,2431.6,0.8154]
[1750943688151,1.77810789,2432.5,2431.8,4.1120729]
[1750943688479,0.97310789,2432.4,2431.7,4.11234938]
[1750943688673,0.97310789,2432.3,2431.7,4.11228827]
[1750943688881,0.97328384,2432.2,2431.7,4.11227282]
[1750943689180,0.55,2432.4,2431.6,4.11250004]
[1750943689381,1.31596306,2432.3,2431.7,4.11232356]
[1750943689594,0.97346306,2432.2,2431.7,4.11232356]
[1750943689747,0.3425,2432.3,2431.7,4.11232356]
[1750943689948,0.97346201,2432.2,2431.7,4.11232356]
[1750943690163,0.3425,2432.3,2431.6,4.11244803]
[1750943690375,0.97362917,2432.2,2431.6,4.11244803]
[1750943690576,0.3425,2432.3,2431.6,4.11246458]
[1750943690880,0.97362709,2432.2,2431.6,4.11246458]
[1750943691085,0.3425,2432.3,2431.6,4.11246458]
[1750943691288,0.97362765,2432.2,2431.6,4.11246458]
[1750943691478,0.3425,2432.3,2431.7,4.11233244]
[1750943691781,0.3425,2432.3,2431.5,14.11262677]
[1750943691782,0.97378554,2432.2,2431.6,4.11242842]
[1750943691979,0.97373494,2432.1,2431.5,4.1126234]
[1750943692147,0.7886,2432.2,2431.5,4.1126234]
[1750943692346,0.7886,2432.2,2431.4,4.11285569]
[1750943692585,0.7886,2432.2,2431.5,4.11252046]
[1750943693368,4.11070506,2432.7,2431.5,4.11252046]
[1750943693369,0.7627,2432.8,2431.9,4.11191536]
[1750943693577,0.97422278,2432.7,2431.9,4.11191536]
[1750943693765,0.97422278,2432.6,2431.9,4.11191536]
[1750943693967,0.97422278,2432.5,2432.0,4.11179031]
[1750943694288,0.97422278,2432.4,2432.0,4.11179031]
[1750943694499,0.97422278,2432.3,2431.9,4.11193789]
[1750943694671,0.97422278,2432.3,2431.8,0.8248]
[1750943694672,0.7611,2432.5,2431.7,14.11219086]
[1750943694985,0.97436743,2432.4,2431.7,14.11219086]
[1750943695187,0.7611,2432.5,2431.7,14.11219086]
[1750943695188,0.97436743,2432.3,2431.7,4.11234535]
[1750943695377,0.97436743,2432.2,2431.7,4.11234535]
[1750943695573,10.7611,2432.5,2431.7,4.11234535]
[1750943695755,12.77621588,2432.4,2431.7,4.11234535]
[1750943695955,10.97450588,2432.3,2431.7,4.11234535]
[1750943696181,1.80171,2432.4,2431.5,0.7552]
[1750943696182,0.97450588,2432.2,2431.5,0.7552]